bitfinex/quotes_ETHUSD_20260302
["timestamp","ask_amount","ask_price","bid_price","bid_amount"]
[1772465393240,2.53507483,2031.2,2029.7,5.89960741]
[1772465393574,0.002,2031.6,2029.4,4.927322]
[1772465393575,0.002,2031.6,2030.0,7.13111321]
[1772465393738,0.002,2031.6,2030.2,5.89960741]
[1772465394059,0.002,2031.6,2030.4,5.89960741]
[1772465394678,0.002,2031.6,2030.6,5.89960741]
[1772465395166,0.002,2031.6,2030.7,0.893]
[1772465395343,0.002,2031.6,2030.8,0.892]
[1772465396284,0.002,2031.6,2030.6,6.79160741]
[1772465396953,0.002,2031.6,2030.6,5.89960741]
[1772465397457,5.9289729,2031.5,2030.3,0.892]
[1772465397992,1.88865589,2031.6,2030.4,5.89960741]
[1772465397993,0.002,2031.6,2030.4,5.89960741]
[1772465398683,0.002,2031.6,2030.5,0.892]
[1772465398977,0.002,2031.6,2030.6,7.7862633]
[1772465399283,0.002,2031.6,2031.0,5.89960741]
[1772465399480,0.002,2031.8,2031.0,5.89960741]
[1772465399652,7.2289729,2032.7,2031.2,7.7862633]
[1772465399846,7.2289729,2032.7,2030.7,3.77331178]
[1772465399847,5.9289729,2032.7,2031.6,1.88665589]
[1772465400081,5.9289729,2033.0,2031.7,0.892]
[1772465400287,7.81562879,2032.8,2031.6,0.892]
[1772465400493,0.065536,2033.0,2031.6,6.79160741]
[1772465400783,0.002,2033.3,2032.1,5.89960741]
[1772465401013,1.88665589,2033.2,2031.5,5.89960741]
[1772465401299,5.9289729,2033.2,2031.8,5.89960741]
[1772465401798,0.002,2033.3,2032.3,5.89960741]
[1772465402000,0.002,2033.3,2031.6,5.81402391]
[1772465402001,9.70228468,2032.8,2031.3,5.89960741]
[1772465402185,0.002,2031.9,2031.3,7.7862633]
[1772465402386,0.002,2031.9,2031.4,0.892]
[1772465402590,5.9289729,2032.8,2031.5,5.89960741]
[1772465402790,5.9289729,2032.8,2031.4,0.892]
[1772465403218,5.9289729,2033.2,2031.9,5.89960741]
[1772465403419,0.002,2033.3,2032.2,5.89960741]
[1772465403868,0.002,2033.3,2032.7,1.88665589]
[1772465404064,0.002,2033.3,2032.8,6.79160741]
[1772465404302,0.002,2033.5,2032.8,6.79160741]
[1772465404508,0.002,2033.7,2032.8,6.79160741]
[1772465405111,0.002,2033.7,2032.9,5.89960741]
[1772465405415,0.002,2033.7,2033.0,0.892]
[1772465405782,0.002,2033.7,2033.0,0.893]
[1772465406107,0.002,2033.7,2032.9,0.893]
[1772465406422,0.002,2033.7,2032.8,0.892]
[1772465406577,0.002,2033.7,2032.8,6.79160741]
[1772465407232,70.07643804,2034.0,2032.9,5.89960741]
[1772465407424,70.07643804,2034.0,2033.3,5.89960741]
[1772465407425,55.54787349,2034.0,2033.3,5.89960741]
[1772465407590,49.17897814,2034.0,2033.5,5.89960741]
[1772465407789,0.002,2034.3,2033.8,5.89960741]
[1772465407990,5.9289729,2035.5,2034.0,5.89960741]
[1772465408182,5.9289729,2035.5,2034.1,6.79160741]
[1772465408390,5.9289729,2035.9,2034.1,6.79160741]
[1772465408589,5.9289729,2035.9,2034.3,5.89960741]
[1772465408799,5.9289729,2035.9,2034.5,5.89960741]
[1772465409115,2.53279021,2036.2,2034.6,6.79260741]
[1772465409356,0.002,2036.2,2034.9,7.83517813]
[1772465409555,0.002,2036.2,2035.0,6.79260741]
[1772465409844,0.002,2036.2,2035.1,0.893]
[1772465410011,0.002,2036.2,2034.6,5.89960741]
[1772465410224,0.002,2036.2,2034.8,5.89960741]
[1772465410418,0.002,2036.4,2035.0,6.0490924]
[1772465410648,0.002,2036.4,2035.8,5.89960741]
[1772465410944,0.002,2036.4,2035.9,0.893]
[1772465411153,0.002,2036.4,2035.3,5.89960741]
[1772465411321,0.002,2036.4,2035.4,0.893]
[1772465411523,0.002,2036.4,2034.8,5.89960741]
[1772465411726,5.9309729,2036.4,2034.9,0.893]
[1772465412046,0.002,2036.4,2035.0,5.89960741]
[1772465412341,0.002,2036.7,2035.3,5.89960741]
[1772465412547,0.002,2036.7,2035.4,0.893]
[1772465412925,0.002,2036.7,2035.4,5.89960741]
[1772465413127,7.15650898,2036.6,2035.3,0.893]
[1772465413527,7.2935089,2036.5,2034.9,5.89960741]
[1772465413716,5.9289729,2036.5,2035.2,0.892]
[1772465413916,5.9309729,2036.7,2035.2,0.892]
[1772465414138,5.9309729,2036.7,2035.2,6.79160741]
[1772465414323,0.002,2036.7,2035.3,5.89960741]
[1772465414651,6.21611075,2036.7,2035.3,5.89960741]
[1772465414950,6.21611075,2036.7,2035.4,0.892]
[1772465415137,6.21611075,2036.7,2035.5,0.892]
[1772465415654,0.002,2036.7,2035.5,6.82679886]
[1772465416071,0.002,2036.4,2035.5,6.82679886]
[1772465416272,0.002,2036.7,2035.5,6.82679886]
[1772465416555,0.002,2036.7,2035.6,0.892]
[1772465416763,0.002,2036.7,2035.1,5.93479886]
[1772465416982,0.002,2036.6,2035.2,0.892]
[1772465417356,0.002,2036.6,2035.2,7.06696719]
[1772465417586,0.002,2036.6,2035.3,0.892]
[1772465417784,0.002,2036.6,2035.4,0.892]
[1772465417951,0.002,2036.6,2035.5,0.892]
[1772465418153,0.002,2036.6,2035.6,0.892]
[1772465419480,0.002,2036.6,2035.2,6.17496719]
[1772465419797,0.002,2036.6,2035.4,6.17496719]
[1772465419962,0.002,2036.6,2035.6,6.17496719]
[1772465420459,0.002,2036.6,2035.7,0.891]
[1772465420652,0.002,2036.6,2035.7,7.06596719]
[1772465421286,0.002,2036.6,2035.8,7.48490517]
[1772465421484,0.002,2036.7,2036.0,6.17496719]
[1772465421672,0.002,2036.7,2036.1,0.891]
[1772465421982,0.002,2036.7,2036.1,7.06596719]
[1772465422904,0.002,2037.9,2036.4,6.17496719]
[1772465423065,0.002,2037.9,2036.6,6.17496719]
[1772465423274,0.002,2037.9,2036.8,6.17496719]
[1772465423791,0.002,2037.9,2036.0,0.41893798]
[1772465423992,0.002,2037.9,2036.4,1.22765664]
[1772465424197,0.002,2037.9,2036.5,6.17496719]
[1772465424432,0.002,2037.9,2036.7,6.17496719]
[1772465424588,0.002,2037.9,2036.9,6.17496719]
[1772465424916,6.44237965,2037.7,2036.5,0.892]
[1772465425213,6.44237965,2037.7,2035.8,0.35506503]
[1772465425214,6.44237965,2037.7,2035.8,6.17496719]
[1772465425400,6.44237965,2037.5,2035.9,7.06596719]
[1772465425614,2.60439033,2037.8,2036.0,6.17496719]
[1772465425783,9.04676998,2037.8,2036.2,6.17496719]
[1772465425988,9.04676998,2037.8,2036.3,2.11867397]
[1772465426183,9.04676998,2037.8,2036.4,6.17496719]
[1772465426397,9.04676998,2037.8,2036.5,0.891]
[1772465426808,6.44237965,2037.8,2036.5,7.06596719]
[1772465427217,6.44237965,2037.8,2036.6,0.891]
[1772465427617,6.44237965,2037.8,2036.7,0.891]
[1772465427922,0.002,2037.9,2036.7,0.891]
[1772465428488,6.44437965,2037.9,2036.7,0.891]
[1772465428733,6.44237965,2037.8,2036.7,0.891]
[1772465429237,6.44237965,2037.8,2036.1,6.17496719]
[1772465429446,6.44237965,2037.8,2036.2,0.891]
[1772465429447,6.44237965,2037.5,2036.2,0.891]
[1772465429935,7.73237965,2037.5,2035.7,6.17496719]
[1772465430140,7.73237965,2037.5,2035.8,0.891]
[1772465430336,6.50791565,2037.4,2035.9,0.891]
[1772465430626,6.44237965,2037.1,2035.7,7.06596719]
[1772465430833,6.44237965,2037.1,2035.7,0.89]
[1772465431127,6.44237965,2036.9,2035.6,0.89]
[1772465431628,1.29,2037.0,2035.4,0.001]
[1772465431629,6.50791565,2036.6,2035.4,0.001]
[1772465432128,0.065536,2036.4,2035.4,0.001]
[1772465432347,6.44237965,2036.3,2035.4,0.001]
[1772465432695,6.44237965,2036.6,2035.4,0.001]
[1772465432898,6.44237965,2036.4,2035.4,0.001]
[1772465433127,8.37795037,2036.3,2035.4,0.001]
[1772465433300,6.44237965,2036.2,2035.4,0.001]
[1772465433936,6.44237965,2035.7,2035.2,0.001]
[1772465434096,6.44237965,2036.1,2035.2,0.001]
[1772465434737,7.73237965,2036.1,2035.2,0.001]
[1772465434948,6.44237965,2036.1,2035.2,0.001]
[1772465435508,6.44237965,2036.6,2035.2,6.17596719]
[1772465435711,1.289,2036.9,2035.2,6.9499702]
[1772465435916,7.73137965,2036.9,2035.2,6.9499702]
[1772465436113,6.44237965,2036.5,2035.2,0.001]
[1772465437967,6.44237965,2036.3,2035.2,0.001]
[1772465438171,7.73137965,2036.2,2035.2,0.001]
[1772465438330,8.95915688,2036.2,2035.2,0.001]
[1772465438658,8.95915688,2036.2,2034.9,0.001]
[1772465438659,6.44237965,2035.7,2034.9,0.001]
[1772465438949,7.73137965,2035.7,2034.9,0.001]
[1772465439246,1.289,2035.6,2034.9,0.001]
[1772465439543,7.73137965,2035.6,2033.9,8.89844164]
[1772465439915,7.73137965,2035.6,2033.9,6.17496719]
[1772465440122,7.73137965,2035.6,2033.7,0.886]
[1772465440317,6.44237965,2035.4,2033.7,7.06096719]
[1772465440518,1.289,2035.3,2033.8,6.17496719]
[1772465440864,6.44237965,2035.4,2033.8,6.53003222]
[1772465441020,6.44237965,2035.4,2034.0,6.17496719]
[1772465441222,1.289,2035.6,2034.0,6.17496719]
[1772465441522,7.73137965,2035.6,2034.0,6.17496719]
[1772465441724,7.73137965,2035.6,2033.8,0.886]
[1772465442126,7.73137965,2035.6,2033.8,2.11520675]
[1772465442326,7.73137965,2035.6,2033.9,6.17496719]
[1772465442530,7.73137965,2035.6,2034.0,0.886]
[1772465442961,7.73137965,2035.6,2034.0,7.06096719]
[1772465443249,3.88435264,2035.8,2034.2,6.17496719]
[1772465443451,6.44237965,2035.7,2034.1,0.41893798]
[1772465443642,6.44237965,2035.7,2033.8,7.06096719]
[1772465444146,6.44237965,2035.3,2033.8,7.06096719]
[1772465444345,6.44237965,2035.3,2033.8,6.17496719]
[1772465444520,6.44237965,2035.3,2034.4,0.001]
[1772465445168,6.44237965,2035.1,2033.4,6.17496719]
[1772465445349,2.77061139,2035.3,2034.2,0.001]
[1772465445350,6.44237965,2034.7,2034.2,0.001]
[1772465445526,6.44237965,2034.7,2033.3,0.886]
[1772465445731,6.44237965,2034.7,2033.0,7.40466263]
[1772465445925,6.44237965,2034.7,2033.0,6.17496719]
[1772465446154,6.44237965,2034.5,2033.9,0.001]
[1772465446350,6.44237965,2034.3,2032.9,2.66915732]
[1772465446559,6.44237965,2034.3,2033.0,6.17496719]
[1772465446767,7.73037965,2034.3,2033.0,6.17496719]
[1772465447135,6.44237965,2034.3,2033.0,6.17496719]
[1772465447345,7.72937965,2034.3,2033.0,6.17496719]
[1772465447545,6.44237965,2034.3,2033.0,6.17496719]
[1772465447736,6.44237965,2034.3,2033.0,7.06096719]
[1772465447945,2.70507539,2035.2,2033.1,5.99261095]
[1772465448147,5.97155862,2035.0,2033.3,5.99261095]
[1772465448656,5.97155862,2035.0,2033.4,0.886]
[1772465449372,5.97155862,2035.0,2033.5,0.885]
[1772465449655,1.287,2034.9,2033.5,6.87761095]
[1772465449855,1.287,2034.9,2033.5,5.99261095]
[1772465450060,7.19302262,2034.9,2033.5,5.99261095]
[1772465450374,5.97155862,2034.8,2033.3,0.885]
[1772465450674,5.97155862,2034.8,2033.1,5.99261095]
[1772465450873,5.97155862,2034.8,2033.3,0.885]
[1772465451044,5.97155862,2034.8,2033.1,5.99261095]
[1772465451435,5.97155862,2034.6,2032.9,8.66176827]
[1772465451631,5.90602262,2034.4,2032.9,8.66176827]
[1772465451834,7.25855862,2034.3,2032.9,8.66176827]
[1772465452556,5.97155862,2034.1,2032.5,0.001]
[1772465452833,7.19202262,2034.0,2032.5,0.001]
[1772465453033,0.065536,2033.8,2032.5,0.001]
[1772465453233,5.97155862,2033.8,2032.5,0.001]
[1772465453980,5.90602262,2033.8,2032.5,0.001]
[1772465454276,1.286,2033.9,2032.6,0.885]
[1772465454565,0.065536,2034.1,2032.6,6.87761095]
[1772465454858,7.19202262,2034.0,2032.6,6.87761095]
[1772465455229,7.19202262,2034.0,2032.5,0.001]
[1772465455230,5.90602262,2033.8,2032.5,0.001]
[1772465455490,5.90602262,2033.6,2032.5,0.001]
[1772465455988,1.351536,2033.9,2032.5,5.99361095]
[1772465456144,1.286,2033.8,2032.5,6.87761095]
[1772465456734,1.286,2033.8,2032.5,5.99361095]
[1772465456990,5.90602262,2033.9,2032.5,6.87761095]
[1772465457139,7.19102262,2033.9,2032.5,5.99361095]
[1772465457337,5.90602262,2033.9,2032.6,0.884]
[1772465457639,1.285,2034.2,2032.7,5.99261095]
[1772465457878,0.065536,2034.2,2032.7,6.41154893]
[1772465458045,7.19102262,2034.3,2032.7,5.99261095]
[1772465458272,7.19102262,2034.3,2032.8,6.41154893]
[1772465458474,7.19102262,2034.3,2032.8,6.87761095]
[1772465458978,2.56462503,2034.5,2033.0,5.99261095]
[1772465459166,1.285,2034.9,2033.0,5.99261095]
[1772465459364,0.002,2034.1,2033.2,5.99261095]
[1772465459593,5.90602262,2035.1,2033.3,6.87761095]
[1772465459779,0.002,2034.3,2033.4,5.99261095]
[1772465459981,0.002,2034.3,2033.4,6.34767598]
[1772465460184,0.002,2034.3,2033.6,5.99261095]
[1772465460597,0.002,2034.3,2033.6,6.87761095]
[1772465460900,0.002,2034.3,2033.6,5.99261095]
[1772465461068,0.002,2034.3,2033.7,0.885]
[1772465461274,0.002,2034.3,2033.7,5.99261095]
[1772465461577,0.002,2034.3,2033.8,0.885]
[1772465461772,0.002,2034.3,2033.7,5.99261095]
[1772465461773,0.002,2034.3,2033.7,6.87761095]
[1772465462045,0.002,2034.3,2033.4,0.885]
[1772465462308,0.002,2034.3,2033.6,5.99261095]
[1772465463010,0.002,2034.3,2033.7,0.886]
[1772465463183,0.002,2034.3,2033.6,5.99261095]
[1772465463387,0.002,2034.3,2033.5,0.886]
[1772465464315,0.002,2034.3,2033.3,0.886]
[1772465464517,0.002,2034.3,2033.2,5.99261095]
[1772465464757,0.002,2034.3,2032.8,5.99361095]
[1772465464879,0.002,2034.3,2033.2,0.886]
[1772465465493,0.002,2034.3,2033.2,6.87861095]
[1772465465903,0.002,2034.3,2033.3,0.885]
[1772465466108,0.002,2034.3,2033.5,5.99261095]
[1772465466403,0.002,2034.6,2033.7,5.99261095]
[1772465466704,0.002,2034.6,2033.2,5.99261095]
[1772465466705,5.90802262,2034.6,2033.2,5.99261095]
[1772465466909,5.90802262,2034.6,2032.9,0.885]
[1772465466910,5.90602262,2034.4,2032.9,0.885]
[1772465467089,7.18502262,2034.4,2032.9,0.885]
[1772465467425,7.18502262,2034.4,2032.8,5.99361095]
[1772465467426,5.90602262,2034.2,2032.8,5.99361095]
[1772465467586,5.97155862,2034.1,2032.8,0.001]
[1772465467786,5.97155862,2033.8,2032.8,0.001]
[1772465468401,5.90602262,2033.6,2032.8,0.001]
[1772465468837,5.90602262,2033.4,2032.5,0.001]
[1772465469160,5.97155862,2033.8,2032.5,0.886]
[1772465469418,5.90602262,2033.8,2032.5,6.87861095]
[1772465469590,1.279,2034.0,2032.5,6.87861095]
[1772465469786,1.279,2034.0,2032.6,0.41893798]
[1772465470012,1.279,2034.0,2032.7,0.885]
[1772465470013,7.18502262,2034.0,2032.7,0.885]
[1772465470423,5.90602262,2034.0,2032.6,1.22992432]
[1772465470591,8.47064765,2034.4,2032.8,6.87761095]
[1772465470917,8.47064765,2034.4,2032.8,7.29654893]
[1772465471104,0.002,2034.6,2033.0,5.99261095]
[1772465471619,0.002,2034.6,2033.1,0.41893798]
[1772465471804,5.90802262,2034.6,2033.0,5.99261095]
[1772465472001,5.90802262,2034.6,2033.1,0.885]
[1772465472620,0.002,2034.6,2033.2,7.29554893]
[1772465472826,0.002,2034.6,2033.2,6.87661095]
[1772465472997,0.002,2034.6,2033.4,5.99261095]
[1772465473200,0.002,2034.3,2033.4,5.99261095]
[1772465473398,0.002,2034.3,2032.9,7.22237596]
[1772465473712,0.002,2034.3,2032.5,4.98634314]
[1772465473713,5.90802262,2034.3,2033.0,0.884]
[1772465474219,5.90802262,2034.3,2032.5,5.99361095]
[1772465474429,5.90535543,2034.1,2032.5,5.99361095]
[1772465474632,5.90535543,2034.1,2032.6,1.22995178]
[1772465475226,5.90535543,2034.1,2032.5,6.87761095]
[1772465475524,5.90535543,2034.1,2032.5,0.885]
[1772465476023,5.97089143,2033.8,2032.5,0.001]
[1772465476426,3.98107539,2034.2,2032.6,1.22995178]
[1772465476427,1.276,2034.0,2032.6,1.22995178]
[1772465476599,1.276,2034.0,2032.7,5.86380041]
[1772465476800,5.90735543,2034.3,2032.7,5.86380041]
[1772465477043,5.90735543,2034.3,2032.8,0.883]
[1772465477542,0.002,2034.3,2032.8,7.33291673]
[1772465477722,0.002,2034.3,2032.8,7.75185471]
[1772465478224,0.002,2034.3,2033.0,6.44991673]
[1772465478425,0.002,2034.3,2033.1,0.41893798]
[1772465478627,0.002,2034.3,2033.4,6.44991673]
[1772465479203,0.002,2034.3,2033.1,0.883]
[1772465479506,0.002,2034.3,2033.2,0.883]
[1772465479703,6.02756947,2034.3,2032.9,0.883]
[1772465479917,6.02756947,2034.3,2032.9,7.33291673]
[1772465480441,0.002,2034.3,2032.9,7.33291673]
[1772465480631,0.002,2034.3,2033.1,6.44991673]
[1772465480798,0.002,2034.3,2033.2,0.883]
[1772465481004,0.002,2034.3,2033.1,6.44991673]
[1772465481229,6.02756947,2034.3,2032.9,0.883]
[1772465481430,6.02756947,2034.3,2032.9,7.33291673]
[1772465482110,0.002,2034.3,2032.9,7.33291673]
[1772465482511,0.002,2034.3,2033.0,7.67962651]
[1772465482757,0.002,2034.3,2033.1,7.75185471]
[1772465482906,0.002,2034.3,2033.2,7.33291673]
[1772465483106,0.002,2034.6,2033.4,6.44991673]
[1772465483538,1.23075686,2034.6,2033.4,6.44991673]
[1772465483706,1.23075686,2034.6,2033.5,0.883]
[1772465484037,1.23076102,2034.6,2033.5,0.883]
[1772465484236,1.23076102,2034.6,2033.4,6.44991673]
[1772465484409,7.25633049,2034.6,2033.2,0.883]
[1772465484738,6.02556947,2034.4,2033.3,1.22952835]
[1772465484938,6.09110547,2034.2,2032.8,4.91925082]
[1772465485326,6.09110547,2034.2,2032.8,1.22983077]
[1772465485933,6.09110547,2034.2,2033.0,0.001]
[1772465486135,6.09110547,2034.2,2032.8,1.22983077]
[1772465486136,6.09110547,2033.6,2032.7,0.001]
[1772465486443,7.29756947,2033.5,2032.7,0.001]
[1772465486650,1.22946788,2033.4,2032.7,0.001]
[1772465486861,1.22946788,2033.4,2032.8,0.001]
[1772465487019,7.25503735,2033.4,2032.8,0.001]
[1772465487350,1.272,2033.3,2032.8,0.001]
[1772465487855,1.22946788,2033.4,2032.8,0.001]
[1772465488385,0.002,2034.7,2032.8,6.45091673]
[1772465488534,4.98269415,2034.1,2033.0,6.44991673]
[1772465488742,6.21174598,2034.1,2033.1,1.2296493]
[1772465489149,4.98269415,2034.0,2033.1,1.2296493]
[1772465489600,4.98269415,2034.0,2032.9,1.22977027]
[1772465490229,1.274,2033.9,2032.9,1.22977027]
[1772465490638,6.21192022,2033.8,2032.8,0.001]
[1772465491063,4.98269415,2033.7,2032.8,0.001]
[1772465491533,4.98269415,2033.6,2032.8,0.001]
[1772465492049,4.98269415,2033.5,2032.8,0.001]
[1772465492246,1.22922607,2033.8,2032.8,0.001]
[1772465492439,1.22922607,2033.8,2032.7,0.001]
[1772465492440,0.065536,2033.6,2032.7,0.001]
[1772465492639,1.22934697,2033.6,2032.7,0.001]
[1772465493041,4.98269415,2033.5,2032.7,0.001]
[1772465493241,4.98269415,2033.5,2032.7,6.45091673]
[1772465493443,0.002,2034.2,2032.7,6.45091673]
[1772465493651,4.98269415,2034.0,2032.9,6.44991673]
[1772465493848,4.98269415,2034.0,2033.1,6.44991673]
[1772465494748,4.98269415,2034.0,2033.2,1.22958882]
[1772465494951,6.21179962,2034.0,2032.8,1.22983077]
[1772465495750,6.25669415,2034.0,2032.8,7.6797475]
[1772465496270,0.002,2034.2,2032.9,6.78218571]
[1772465496470,0.002,2034.2,2033.1,6.44991673]
[1772465496669,0.002,2034.2,2033.3,6.44991673]
[1772465496876,0.002,2034.2,2033.5,6.44991673]
[1772465497747,0.002,2034.2,2033.2,1.22958882]
[1772465498353,0.002,2034.2,2033.2,7.67950555]
[1772465498554,0.002,2034.4,2033.3,6.44991673]
[1772465498866,0.002,2034.4,2033.4,8.56438461]
[1772465499062,0.002,2034.4,2033.5,0.885]
[1772465499374,0.002,2034.4,2033.4,1.22946788]
[1772465500557,6.02756947,2034.4,2033.4,1.22946788]
[1772465500762,6.02756947,2034.4,2033.1,4.91856757]
[1772465500763,7.25449342,2034.3,2033.1,4.91856757]
[1772465500984,1.271,2034.2,2033.1,4.91856757]
[1772465501356,1.272,2034.1,2033.1,4.91856757]
[1772465501682,1.272,2034.1,2033.0,1.2296493]
[1772465501683,7.29756947,2034.1,2032.8,1.22983077]
[1772465501987,6.02556947,2033.7,2033.0,0.001]
[1772465502162,1.99978559,2033.8,2032.7,0.001]
[1772465502163,6.02556947,2033.5,2032.7,0.001]
[1772465502557,6.02556947,2033.5,2032.8,0.001]
[1772465502759,1.22946788,2033.4,2032.8,0.001]
[1772465503781,1.273,2033.3,2032.8,0.001]
[1772465504083,1.273,2033.2,2032.8,0.001]
[1772465504491,1.22946788,2033.4,2032.8,0.001]
[1772465504674,7.25503735,2033.4,2032.8,0.001]
[1772465504879,1.274,2033.3,2032.8,0.001]
[1772465505279,1.274,2033.2,2032.5,0.001]
[1772465505667,1.274,2033.2,2032.3,0.001]
[1772465505668,6.02556947,2032.9,2032.3,0.001]
[1772465505870,6.02556947,2032.5,2031.1,7.68071625]
[1772465506091,6.02556947,2032.5,2030.7,0.33226898]
[1772465506092,6.02556947,2032.4,2030.9,1.23098133]
[1772465506284,7.95981906,2032.2,2030.7,4.92427483]
[1772465506665,6.02556947,2032.1,2030.7,4.92427483]
[1772465506861,2.50431496,2032.0,2030.7,4.92427483]
[1772465507280,8.12117434,2031.8,2030.5,4.92474822]
[1772465507577,2.50431496,2032.0,2030.5,4.92474822]
[1772465507578,1.275,2031.7,2030.5,10.77721054]
[1772465507779,1.275,2031.7,2030.6,5.85246232]
[1772465508005,1.275,2031.7,2030.5,4.92474822]
[1772465508212,1.275,2031.7,2030.3,5.33156136]
[1772465508213,6.18692475,2031.5,2030.3,0.001]
[1772465508432,3.20824959,2031.6,2030.3,0.001]
[1772465508433,6.18692475,2031.1,2030.3,0.001]
[1772465508728,1.274,2031.0,2030.3,0.001]
[1772465509019,1.275,2030.9,2030.3,0.001]
[1772465509190,1.275,2031.4,2030.3,0.001]
[1772465509398,0.065536,2031.3,2030.3,0.001]
[1772465509583,6.18692475,2031.0,2030.3,0.001]
[1772465510019,0.065536,2031.3,2030.3,0.001]
[1772465510238,1.274,2030.9,2030.3,0.001]
[1772465510520,1.274,2030.9,2030.0,0.001]
[1772465510918,1.23104195,2030.8,2030.0,0.001]
[1772465511137,1.23102809,2030.9,2030.0,0.001]
[1772465511334,1.274,2030.8,2030.0,0.001]
[1772465511538,1.23102809,2030.9,2030.0,0.001]
[1772465512233,1.274,2030.9,2030.0,0.001]
[1772465512409,11.1096549,2031.4,2030.0,5.85346232]
[1772465512736,1.274,2031.0,2030.0,5.85346232]
[1772465512925,1.274,2031.0,2029.8,0.884]
[1772465512926,7.4179667,2030.8,2029.3,4.9277218]
[1772465513533,7.4179667,2030.8,2029.3,10.78018412]
[1772465513836,1.274,2031.0,2029.4,5.85246232]
[1772465513837,1.274,2030.7,2029.4,5.85246232]
[1772465514011,7.41770671,2031.3,2029.6,5.85246232]
[1772465514207,1.23062802,2031.5,2029.8,5.85246232]
[1772465514402,1.274,2031.4,2029.9,0.40518798]
[1772465514627,1.274,2031.4,2030.2,5.85246232]
[1772465514813,1.274,2031.5,2030.5,1.23122383]
[1772465515023,1.274,2031.5,2030.5,7.08368615]
[1772465515230,1.274,2031.9,2030.5,7.08368615]
[1772465516046,1.274,2031.9,2030.5,7.96768615]
[1772465516220,0.002,2031.8,2030.5,7.96768615]
[1772465516542,0.002,2031.8,2030.5,7.08368615]
[1772465516833,0.002,2031.8,2030.5,7.96868615]
[1772465517035,0.002,2031.8,2030.6,5.85246232]
[1772465517406,0.002,2031.8,2030.6,6.2576503]
[1772465517605,0.002,2031.8,2030.6,5.85246232]
[1772465518418,0.002,2032.0,2031.1,5.85246232]
[1772465518626,0.002,2032.0,2031.3,5.85246232]
[1772465518833,0.002,2032.0,2031.4,6.73846232]
[1772465519036,0.002,2032.0,2031.5,1.23061777]
[1772465519345,0.002,2032.0,2031.5,7.08308009]
[1772465519719,1.271,2033.1,2031.5,7.08308009]
[1772465520048,1.22952835,2033.3,2031.5,7.08308009]
[1772465520247,1.27,2033.2,2031.6,5.85246232]
[1772465520420,2.49951222,2033.4,2031.6,6.19906464]
[1772465520614,6.18692475,2033.3,2031.8,5.85246232]
[1772465520817,1.22951222,2033.4,2031.5,2.11861777]
[1772465520818,6.18692475,2032.9,2031.5,2.11861777]
[1772465521022,7.41675552,2032.8,2031.5,1.23061777]
[1772465521639,7.4164531,2033.3,2031.7,5.85246232]
[1772465521920,7.45692475,2033.1,2031.7,5.85246232]
[1772465522341,6.18692475,2033.5,2031.7,5.85246232]
[1772465522651,6.18692475,2033.5,2031.7,6.19906464]
[1772465522652,8.68634163,2033.5,2031.7,6.19906464]
[1772465522947,8.68634163,2033.5,2031.8,1.23043606]
[1772465523147,3.83674591,2033.6,2031.9,5.85246232]
[1772465523353,3.83674591,2033.6,2031.8,1.23043606]
[1772465523354,6.18692475,2033.3,2031.8,2.11843606]
[1772465523653,6.18692475,2033.1,2031.3,1.23073893]
[1772465523857,1.41848499,2033.5,2031.3,1.23073893]
[1772465523858,6.18692475,2032.7,2031.3,1.23073893]
[1772465524156,6.18692475,2032.6,2031.3,1.23073893]
[1772465524370,1.269,2032.6,2031.3,7.08320125]
[1772465524523,1.269,2032.6,2031.3,1.23073893]
[1772465524524,7.45592475,2032.6,2031.3,1.23073893]
[1772465525046,2.49905659,2032.5,2031.3,1.23073893]
[1772465525648,8.68598134,2032.5,2031.3,1.23073893]
[1772465526044,6.18692475,2032.4,2031.3,1.23073893]
[1772465526260,1.269,2032.3,2031.3,1.23073893]
[1772465526560,6.18692475,2032.4,2031.3,1.23073893]
[1772465526938,4.91957738,2032.7,2031.4,5.85246232]
[1772465526939,1.269,2032.7,2031.4,5.85246232]
[1772465527134,1.269,2032.7,2031.5,1.23061777]
[1772465527328,2.49889704,2032.7,2031.5,7.08308009]
[1772465527530,2.49889704,2032.7,2031.6,0.889]
[1772465527935,1.269,2032.7,2031.6,0.889]
[1772465528348,2.49889714,2032.7,2031.5,7.08308009]
[1772465528551,8.68582189,2032.7,2031.5,1.23061777]
[1772465529072,1.2300123,2032.5,2031.3,4.92247108]
[1772465529255,7.41692265,2032.6,2031.3,4.92247108]
[1772465529553,1.27,2032.5,2031.3,5.85246232]
[1772465529940,1.27,2032.5,2031.3,0.89]
[1772465530336,6.18692475,2032.4,2031.2,4.92247108]
[1772465530647,6.18692475,2032.4,2031.5,0.001]
[1772465530856,1.27,2032.3,2031.5,0.001]
[1772465531159,1.23019387,2032.2,2031.5,0.001]
[1772465531379,7.41711862,2032.2,2031.3,0.001]
[1772465531663,7.45692475,2032.1,2030.7,1.23110257]
[1772465531865,6.18692475,2031.9,2030.7,1.23110257]
[1772465532030,6.18692475,2031.9,2030.3,1.23134512]
[1772465532228,6.18692475,2031.9,2031.0,0.001]
[1772465532769,6.18692475,2031.7,2031.0,0.001]
[1772465532934,6.18692475,2031.5,2031.0,0.001]
[1772465533134,1.23067834,2031.4,2031.0,0.001]
[1772465533454,1.27,2031.3,2031.0,0.001]
[1772465534053,1.23067834,2031.4,2031.0,0.001]
[1772465534251,1.272,2031.6,2031.0,0.001]
[1772465534550,1.272,2031.5,2031.0,0.001]
[1772465535065,7.61948477,2031.5,2030.2,1.23240577]
[1772465535237,7.61948477,2031.5,2030.2,0.001]
[1772465535238,6.34748477,2031.3,2030.2,0.001]
[1772465535969,6.34748477,2031.1,2030.2,0.001]
[1772465536169,6.34748477,2030.9,2030.2,0.001]